[Event "Early-Titled-Tuesday-Blitz-June-18-2024"]
[Site "Chess.com"]
[Date "2024.06.18"]
[Round "2"]
[White "Kostukov_Alex"]
[Black "Dexter_Dyke"]
[Result "1-0"]
[WhiteElo "2312"]
[BlackElo "2498"]
[TimeControl "180+1"]
[EndTime "8:18:02 PDT"]
[Termination "Kostukov_Alex won on time"]

1. g3 {[%clk 0:03:00.9]} 1... Nf6 {[%clk 0:02:58.4]} 2. Bg2 {[%clk 0:02:56.9]}
2... g6 {[%clk 0:02:58.5]} 3. c4 {[%clk 0:02:54.2]} 3... Bg7 {[%clk 0:02:58.5]}
4. Nf3 {[%clk 0:02:54.8]} 4... d6 {[%clk 0:02:58.7]} 5. O-O {[%clk 0:02:55.4]}
5... O-O {[%clk 0:02:59.3]} 6. d4 {[%clk 0:02:55.4]} 6... a6 {[%clk 0:02:59.8]}
7. Nc3 {[%clk 0:02:55.3]} 7... Nc6 {[%clk 0:03:00]} 8. e4 {[%clk 0:02:53.3]}
8... e5 {[%clk 0:03:00]} 9. d5 {[%clk 0:02:51.9]} 9... Na5 {[%clk 0:02:59.5]}
10. b3 {[%clk 0:02:41.8]} 10... c5 {[%clk 0:02:59.3]} 11. dxc6 {[%clk
0:02:39.4]} 11... Nxc6 {[%clk 0:02:59.3]} 12. Ba3 {[%clk 0:02:36.9]} 12... Qa5
{[%clk 0:02:54.6]} 13. Qc1 {[%clk 0:02:28.8]} 13... Rd8 {[%clk 0:02:23.6]} 14.
Rd1 {[%clk 0:02:26.6]} 14... Nd4 {[%clk 0:02:10]} 15. Nxd4 {[%clk 0:02:22.9]}
15... exd4 {[%clk 0:02:09.7]} 16. Rxd4 {[%clk 0:02:20.3]} 16... Ng4 {[%clk
0:02:05.7]} 17. Rd3 {[%clk 0:02:11.6]} 17... Be6 {[%clk 0:01:46.4]} 18. Bb2
{[%clk 0:01:54]} 18... Qh5 {[%clk 0:01:43.7]} 19. h4 {[%clk 0:01:50.6]} 19... b5
{[%clk 0:01:20.6]} 20. cxb5 {[%clk 0:01:45.8]} 20... axb5 {[%clk 0:01:20.3]} 21.
Nd5 {[%clk 0:01:40.8]} 21... Bxd5 {[%clk 0:01:08.5]} 22. Rxd5 {[%clk 0:01:40.5]}
22... Ne5 {[%clk 0:00:41.9]} 23. f4 {[%clk 0:01:26.4]} 23... Qg4 {[%clk
0:00:26.3]} 24. fxe5 {[%clk 0:01:18.1]} 24... Qxg3 {[%clk 0:00:26.3]} 25. Qe1
{[%clk 0:01:15.7]} 25... Qg4 {[%clk 0:00:20.1]} 26. Qd2 {[%clk 0:00:57.9]} 26...
Qxh4 {[%clk 0:00:11.3]} 27. exd6 {[%clk 0:00:49]} 27... Bxb2 {[%clk 0:00:08.2]}
28. Qxb2 {[%clk 0:00:48.7]} 28... Rac8 {[%clk 0:00:05]} 29. Rad1 {[%clk
0:00:45.7]} 29... Qg3 {[%clk 0:00:01.8]} 30. d7 {[%clk 0:00:44]} 30... Rc7
{[%clk 0:00:01.8]} 31. Qf2 {[%clk 0:00:40]} 31... Qg4 {[%clk 0:00:02]} 32. e5
{[%clk 0:00:37.3]} 32... Rcxd7 {[%clk 0:00:02]} 33. Rxd7 {[%clk 0:00:35.8]}
33... Rxd7 {[%clk 0:00:02.5]} 34. Rxd7 {[%clk 0:00:32.4]} 1-0

[Event "Early-Titled-Tuesday-Blitz-June-18-2024"]
[Site "Chess.com"]
[Date "2024.06.18"]
[Round "2"]
[White "Vesper2018"]
[Black "XDPS"]
[Result "0-1"]
[WhiteElo "2607"]
[BlackElo "2875"]
[TimeControl "180+1"]
[EndTime "8:18:03 PDT"]
[Termination "XDPS won on time"]

1. e4 {[%clk 0:02:57.7]} 1... c5 {[%clk 0:02:55.7]} 2. Nc3 {[%clk 0:02:57.3]}
2... e6 {[%clk 0:02:56.3]} 3. Nge2 {[%clk 0:02:55]} 3... a6 {[%clk 0:02:56.2]}
4. g3 {[%clk 0:02:54.7]} 4... d6 {[%clk 0:02:56.5]} 5. Bg2 {[%clk 0:02:55]} 5...
Nf6 {[%clk 0:02:57]} 6. d4 {[%clk 0:02:52.8]} 6... cxd4 {[%clk 0:02:57.2]} 7.
Nxd4 {[%clk 0:02:53.4]} 7... Be7 {[%clk 0:02:57.8]} 8. O-O {[%clk 0:02:53.1]}
8... Qc7 {[%clk 0:02:58.5]} 9. f4 {[%clk 0:02:51.9]} 9... Nc6 {[%clk 0:02:58.7]}
10. Be3 {[%clk 0:02:49.6]} 10... O-O {[%clk 0:02:57.6]} 11. Kh1 {[%clk
0:02:44.8]} 11... Rb8 {[%clk 0:02:50.2]} 12. Qe2 {[%clk 0:02:41.7]} 12... Bd7
{[%clk 0:02:47]} 13. Rad1 {[%clk 0:02:41.1]} 13... b5 {[%clk 0:02:45.4]} 14. a3
{[%clk 0:02:15]} 14... Rfc8 {[%clk 0:02:40.2]} 15. Nxc6 {[%clk 0:02:09.9]} 15...
Bxc6 {[%clk 0:02:39.9]} 16. Bd4 {[%clk 0:01:54.2]} 16... a5 {[%clk 0:02:38.7]}
17. g4 {[%clk 0:01:50.8]} 17... b4 {[%clk 0:02:38.5]} 18. g5 {[%clk 0:01:28.5]}
18... Nd7 {[%clk 0:02:18.7]} 19. Nb1 {[%clk 0:01:05.8]} 19... Bb5 {[%clk
0:02:18.4]} 20. Qh5 {[%clk 0:01:02.5]} 20... Bxf1 {[%clk 0:02:15.7]} 21. Rxf1
{[%clk 0:01:02.5]} 21... Qxc2 {[%clk 0:02:10.5]} 22. f5 {[%clk 0:00:50.1]} 22...
e5 {[%clk 0:02:07.4]} 23. Ba7 {[%clk 0:00:42.3]} 23... Rb7 {[%clk 0:02:03.4]}
24. Be3 {[%clk 0:00:41.7]} 24... Qb3 {[%clk 0:02:00]} 25. Qh3 {[%clk 0:00:35.6]}
25... Rc2 {[%clk 0:01:45.2]} 26. Nd2 {[%clk 0:00:25.1]} 26... Qd3 {[%clk
0:01:20.2]} 27. Rd1 {[%clk 0:00:17]} 27... bxa3 {[%clk 0:01:17]} 28. bxa3 {[%clk
0:00:15.7]} 28... Rbb2 {[%clk 0:01:17.7]} 29. f6 {[%clk 0:00:13.9]} 29... Nxf6
{[%clk 0:00:59.2]} 30. gxf6 {[%clk 0:00:13.4]} 30... Bxf6 {[%clk 0:01:00.1]} 31.
Bf1 {[%clk 0:00:08.9]} 31... Qxa3 {[%clk 0:00:54.6]} 32. Nc4 {[%clk 0:00:06.6]}
32... Rxh2+ {[%clk 0:00:54.3]} 33. Kg1 {[%clk 0:00:06.1]} 33... Rxh3 {[%clk
0:00:53.5]} 34. Nxa3 {[%clk 0:00:02]} 34... Rxe3 {[%clk 0:00:54.1]} 35. Nc4
{[%clk 0:00:02.3]} 35... Rg3+ {[%clk 0:00:54.1]} 36. Kh1 {[%clk 0:00:02.8]}
36... Rb8 {[%clk 0:00:51]} 37. Nxd6 {[%clk 0:00:02.2]} 37... Rgb3 {[%clk
0:00:38.8]} 38. Bc4 {[%clk 0:00:02.2]} 38... Rb1 {[%clk 0:00:39.3]} 39. Bxf7+
{[%clk 0:00:01.6]} 39... Kf8 {[%clk 0:00:39.2]} 0-1

[Event "Early-Titled-Tuesday-Blitz-June-18-2024"]
[Site "Chess.com"]
[Date "2024.06.18"]
[Round "2"]
[White "WiktoriaPOL"]
[Black "Timerkhanov"]
[Result "0-1"]
[WhiteElo "2403"]
[BlackElo "2705"]
[TimeControl "180+1"]
[EndTime "8:18:04 PDT"]
[Termination "Timerkhanov won on time"]

1. c4 {[%clk 0:03:00.9]} 1... c6 {[%clk 0:02:59.5]} 2. Nf3 {[%clk 0:03:00.4]}
2... d5 {[%clk 0:03:00]} 3. e3 {[%clk 0:03:00.4]} 3... Nf6 {[%clk 0:03:00.4]} 4.
Nc3 {[%clk 0:02:59.7]} 4... a6 {[%clk 0:03:00.9]} 5. b3 {[%clk 0:03:00]} 5...
Bf5 {[%clk 0:02:58.2]} 6. Bb2 {[%clk 0:03:00.1]} 6... e6 {[%clk 0:02:57.8]} 7.
d4 {[%clk 0:03:00.1]} 7... Nbd7 {[%clk 0:02:57.7]} 8. Be2 {[%clk 0:03:00.1]}
8... Bd6 {[%clk 0:02:56.8]} 9. Nh4 {[%clk 0:03:00]} 9... Be4 {[%clk 0:02:54.3]}
10. f3 {[%clk 0:02:56.7]} 10... Bg6 {[%clk 0:02:53.8]} 11. O-O {[%clk
0:02:53.2]} 11... Bh5 {[%clk 0:02:44.8]} 12. g3 {[%clk 0:02:42.2]} 12... O-O
{[%clk 0:02:42.7]} 13. e4 {[%clk 0:02:41.5]} 13... dxe4 {[%clk 0:02:30.3]} 14.
fxe4 {[%clk 0:02:42.4]} 14... Bxe2 {[%clk 0:02:28.8]} 15. Qxe2 {[%clk
0:02:40.5]} 15... e5 {[%clk 0:02:26.5]} 16. Nf3 {[%clk 0:02:31.2]} 16... exd4
{[%clk 0:02:24.3]} 17. Nxd4 {[%clk 0:02:27.4]} 17... Bc5 {[%clk 0:02:22.4]} 18.
Na4 {[%clk 0:02:25.5]} 18... Ba7 {[%clk 0:02:20.8]} 19. Kh1 {[%clk 0:02:17.1]}
19... Re8 {[%clk 0:02:19]} 20. Nf5 {[%clk 0:02:06.7]} 20... Rxe4 {[%clk
0:02:18.3]} 21. Qd3 {[%clk 0:01:56.2]} 21... Ne5 {[%clk 0:02:09.2]} 22. Qxd8+
{[%clk 0:00:52.1]} 22... Rxd8 {[%clk 0:02:10.1]} 23. Nc3 {[%clk 0:00:51.9]}
23... Rg4 {[%clk 0:01:52.1]} 24. h3 {[%clk 0:00:47.2]} 24... Rg5 {[%clk
0:01:49.2]} 25. Ne2 {[%clk 0:00:31.9]} 25... Nd3 {[%clk 0:01:21.8]} 26. Bc3
{[%clk 0:00:17.8]} 26... Nf2+ {[%clk 0:01:18.5]} 27. Kg2 {[%clk 0:00:15.1]}
27... N2e4 {[%clk 0:01:19]} 28. Be5 {[%clk 0:00:10.1]} 28... Re8 {[%clk
0:01:17.9]} 29. Bd4 {[%clk 0:00:03.6]} 29... Nd2 {[%clk 0:01:13.2]} 30. Rf2
{[%clk 0:00:02.5]} 30... Bb8 {[%clk 0:01:05.4]} 31. Bxf6 {[%clk 0:00:01.8]}
31... gxf6 {[%clk 0:01:02.5]} 32. h4 {[%clk 0:00:02.1]} 32... Rxf5 {[%clk
0:01:01.8]} 33. Rxf5 {[%clk 0:00:02]} 33... Rxe2+ {[%clk 0:01:02.1]} 34. Rf2
{[%clk 0:00:02.2]} 34... Rxf2+ {[%clk 0:01:01.5]} 35. Kxf2 {[%clk 0:00:03.1]}
35... Ne4+ {[%clk 0:01:01.6]} 36. Kf3 {[%clk 0:00:03.5]} 36... f5 {[%clk
0:00:57.7]} 37. Rd1 {[%clk 0:00:03.4]} 37... Bd6 {[%clk 0:00:57.6]} 38. g4
{[%clk 0:00:01.6]} 38... Bb4 {[%clk 0:00:40.8]} 39. gxf5 {[%clk 0:00:01.8]}
39... Nd2+ {[%clk 0:00:40.2]} 40. Ke2 {[%clk 0:00:01.8]} 40... Kg7 {[%clk
0:00:40.3]} 0-1

[Event "Early-Titled-Tuesday-Blitz-June-18-2024"]
[Site "Chess.com"]
[Date "2024.06.18"]
[Round "2"]
[White "LeRoidesChampions"]
[Black "ChristopherYoo"]
[Result "1-0"]
[WhiteElo "2671"]
[BlackElo "3017"]
[TimeControl "180+1"]
[EndTime "8:18:06 PDT"]
[Termination "LeRoidesChampions won on time"]

1. e4 {[%clk 0:02:48.7]} 1... c6 {[%clk 0:02:50.6]} 2. d4 {[%clk 0:02:45.3]}
2... d5 {[%clk 0:02:50.1]} 3. e5 {[%clk 0:02:41.1]} 3... Bf5 {[%clk 0:02:47.5]}
4. h4 {[%clk 0:02:41.4]} 4... h5 {[%clk 0:02:47]} 5. Bg5 {[%clk 0:02:33.1]} 5...
Qb6 {[%clk 0:02:42]} 6. b3 {[%clk 0:02:03.1]} 6... e6 {[%clk 0:02:38.6]} 7. Nf3
{[%clk 0:02:02.1]} 7... c5 {[%clk 0:02:38.3]} 8. Bd3 {[%clk 0:01:53.1]} 8... Bg4
{[%clk 0:02:34.3]} 9. dxc5 {[%clk 0:01:48.3]} 9... Bxc5 {[%clk 0:02:32.9]} 10.
O-O {[%clk 0:01:48.7]} 10... Nc6 {[%clk 0:02:32.4]} 11. Nc3 {[%clk 0:01:33.5]}
11... Be7 {[%clk 0:02:09]} 12. Na4 {[%clk 0:01:28.5]} 12... Qc7 {[%clk
0:02:07.4]} 13. Be2 {[%clk 0:01:23.9]} 13... Bxf3 {[%clk 0:01:57.7]} 14. Bxf3
{[%clk 0:01:24.3]} 14... Nxe5 {[%clk 0:01:55.7]} 15. Be2 {[%clk 0:01:17.2]}
15... Nf6 {[%clk 0:01:53.5]} 16. Rc1 {[%clk 0:01:08.2]} 16... Ne4 {[%clk
0:01:19.3]} 17. c4 {[%clk 0:01:00.2]} 17... Bxg5 {[%clk 0:01:03.2]} 18. hxg5
{[%clk 0:01:00.5]} 18... Ng4 {[%clk 0:00:52.8]} 19. f4 {[%clk 0:00:44.4]} 19...
Ng3 {[%clk 0:00:45.5]} 20. cxd5 {[%clk 0:00:40]} 20... Qd6 {[%clk 0:00:25.6]}
21. Bb5+ {[%clk 0:00:36.8]} 21... Kf8 {[%clk 0:00:25.3]} 22. dxe6 {[%clk
0:00:31.1]} 22... Qxe6 {[%clk 0:00:24]} 23. Re1 {[%clk 0:00:31.6]} 23... Qf5
{[%clk 0:00:16.7]} 24. Qd6+ {[%clk 0:00:31.5]} 24... Kg8 {[%clk 0:00:16.4]} 25.
Bd3 {[%clk 0:00:31.6]} 25... Qa5 {[%clk 0:00:08.5]} 26. Qd7 {[%clk 0:00:27.5]}
26... g6 {[%clk 0:00:05.6]} 27. Bxg6 {[%clk 0:00:20.4]} 27... Rf8 {[%clk
0:00:02.1]} 28. Re8 {[%clk 0:00:16.6]} 28... fxg6 {[%clk 0:00:01.5]} 29. Rxf8+
{[%clk 0:00:16.4]} 1-0

[Event "Early-Titled-Tuesday-Blitz-June-18-2024"]
[Site "Chess.com"]
[Date "2024.06.18"]
[Round "2"]
[White "Niteshch"]
[Black "Andrey_Klymchuk"]
[Result "0-1"]
[WhiteElo "2327"]
[BlackElo "2722"]
[TimeControl "180+1"]
[EndTime "8:18:08 PDT"]
[Termination "Andrey_Klymchuk won by resignation"]

1. e4 {[%clk 0:03:00.9]} 1... c5 {[%clk 0:02:58.3]} 2. Nf3 {[%clk 0:02:59.7]}
2... Nc6 {[%clk 0:02:58.2]} 3. Bb5 {[%clk 0:02:58]} 3... g6 {[%clk 0:02:57.9]}
4. O-O {[%clk 0:02:57.5]} 4... Bg7 {[%clk 0:02:57.8]} 5. c3 {[%clk 0:02:58]}
5... Qb6 {[%clk 0:02:53.3]} 6. Na3 {[%clk 0:02:41.1]} 6... Nf6 {[%clk
0:02:49.1]} 7. e5 {[%clk 0:02:38.9]} 7... Nd5 {[%clk 0:02:48.2]} 8. Bc4 {[%clk
0:02:28]} 8... e6 {[%clk 0:02:37.4]} 9. Bxd5 {[%clk 0:02:05.2]} 9... exd5 {[%clk
0:02:37.1]} 10. d4 {[%clk 0:02:05.4]} 10... cxd4 {[%clk 0:02:37.1]} 11. cxd4
{[%clk 0:02:06.3]} 11... O-O {[%clk 0:02:33.9]} 12. Qb3 {[%clk 0:01:38.5]} 12...
Qxb3 {[%clk 0:02:23.6]} 13. axb3 {[%clk 0:01:39.4]} 13... d6 {[%clk 0:02:23.7]}
14. Nb5 {[%clk 0:01:32.7]} 14... dxe5 {[%clk 0:02:20.2]} 15. Nc7 {[%clk
0:01:24.8]} 15... Rb8 {[%clk 0:02:17]} 16. dxe5 {[%clk 0:01:21.4]} 16... Nxe5
{[%clk 0:02:11.5]} 17. Bf4 {[%clk 0:01:16.7]} 17... Nxf3+ {[%clk 0:01:30.5]} 18.
gxf3 {[%clk 0:01:17.6]} 18... Bh3 {[%clk 0:01:29.7]} 19. Rfd1 {[%clk 0:01:10.8]}
19... a6 {[%clk 0:01:27.7]} 20. Nxd5 {[%clk 0:01:07.7]} 20... Rbd8 {[%clk
0:01:22.6]} 21. Nc3 {[%clk 0:00:44.6]} 21... Rfe8 {[%clk 0:01:10.1]} 22. Be3
{[%clk 0:00:37.9]} 22... Be6 {[%clk 0:00:58.4]} 23. b4 {[%clk 0:00:34.8]} 23...
f5 {[%clk 0:00:46.3]} 24. Rab1 {[%clk 0:00:24.1]} 24... Bc4 {[%clk 0:00:41.5]}
25. Bg5 {[%clk 0:00:22.3]} 25... Rxd1+ {[%clk 0:00:38.7]} 26. Rxd1 {[%clk
0:00:23.2]} 26... h6 {[%clk 0:00:38.1]} 27. Be3 {[%clk 0:00:21]} 27... Kf7
{[%clk 0:00:33.3]} 28. Rd7+ {[%clk 0:00:20.4]} 28... Re7 {[%clk 0:00:33.6]} 29.
Rd6 {[%clk 0:00:18.9]} 29... Be5 {[%clk 0:00:28.8]} 30. Rd8 {[%clk 0:00:16.8]}
30... g5 {[%clk 0:00:26.5]} 31. Kg2 {[%clk 0:00:16.1]} 31... Kg6 {[%clk
0:00:21.7]} 32. Bc5 {[%clk 0:00:15.3]} 32... Rf7 {[%clk 0:00:20.4]} 33. Rg8+
{[%clk 0:00:14.6]} 33... Rg7 {[%clk 0:00:18.8]} 34. Re8 {[%clk 0:00:14.2]} 34...
Bf6 {[%clk 0:00:19.1]} 35. Rc8 {[%clk 0:00:10.4]} 35... Rd7 {[%clk 0:00:19]} 36.
Rg8+ {[%clk 0:00:09.2]} 36... Bxg8 {[%clk 0:00:18.7]} 0-1

[Event "Early-Titled-Tuesday-Blitz-June-18-2024"]
[Site "Chess.com"]
[Date "2024.06.18"]
[Round "2"]
[White "sansanathalia"]
[Black "pfalcon1949"]
[Result "1-0"]
[WhiteElo "2437"]
[BlackElo "1783"]
[TimeControl "180+1"]
[EndTime "8:18:09 PDT"]
[Termination "sansanathalia won by checkmate"]

1. e4 {[%clk 0:03:00.9]} 1... e6 {[%clk 0:02:55.8]} 2. d4 {[%clk 0:02:53.3]}
2... d5 {[%clk 0:02:55.6]} 3. Nd2 {[%clk 0:02:51.2]} 3... Nc6 {[%clk 0:02:55.4]}
4. Ngf3 {[%clk 0:02:50.1]} 4... Nf6 {[%clk 0:02:55.6]} 5. Bd3 {[%clk 0:02:36.9]}
5... Be7 {[%clk 0:02:34]} 6. c3 {[%clk 0:02:28.7]} 6... O-O {[%clk 0:02:19.2]}
7. O-O {[%clk 0:02:19.1]} 7... dxe4 {[%clk 0:02:18.3]} 8. Nxe4 {[%clk
0:02:17.2]} 8... e5 {[%clk 0:02:17.1]} 9. dxe5 {[%clk 0:01:52.7]} 9... Ng4
{[%clk 0:02:14.8]} 10. Bf4 {[%clk 0:01:50.4]} 10... f5 {[%clk 0:02:01]} 11. exf6
{[%clk 0:01:32.9]} 11... Nxf6 {[%clk 0:02:00.5]} 12. Bc4+ {[%clk 0:01:27.2]}
12... Kh8 {[%clk 0:01:57.7]} 13. Neg5 {[%clk 0:01:23.5]} 13... Qe8 {[%clk
0:01:43.1]} 14. Qc2 {[%clk 0:01:12.2]} 14... g6 {[%clk 0:01:37.5]} 15. Rfe1
{[%clk 0:00:55.7]} 15... Na5 {[%clk 0:01:27.1]} 16. Be6 {[%clk 0:00:50.7]} 16...
Bxe6 {[%clk 0:01:17.6]} 17. Nxe6 {[%clk 0:00:50.8]} 17... Qf7 {[%clk 0:01:01.3]}
18. Nfg5 {[%clk 0:00:37.8]} 18... Qg8 {[%clk 0:00:58.2]} 19. Nxf8 {[%clk
0:00:36.1]} 19... Rxf8 {[%clk 0:00:56.8]} 20. Bxc7 {[%clk 0:00:33.6]} 20... Bc5
{[%clk 0:00:54.8]} 21. Be5 {[%clk 0:00:18.8]} 21... Bb6 {[%clk 0:00:48.9]} 22.
Ne4 {[%clk 0:00:17.3]} 22... Bd8 {[%clk 0:00:46.5]} 23. Nxf6 {[%clk 0:00:16.3]}
23... Bxf6 {[%clk 0:00:45.5]} 24. Bxf6+ {[%clk 0:00:16.8]} 24... Rxf6 {[%clk
0:00:45]} 25. Re4 {[%clk 0:00:17.2]} 25... Nc6 {[%clk 0:00:40.7]} 26. Rae1
{[%clk 0:00:16.9]} 26... Rf8 {[%clk 0:00:39.6]} 27. Qb3 {[%clk 0:00:14.9]} 27...
Qg7 {[%clk 0:00:38.5]} 28. Re8 {[%clk 0:00:14.4]} 28... Qf6 {[%clk 0:00:37.7]}
29. Rxf8+ {[%clk 0:00:14.2]} 29... Qxf8 {[%clk 0:00:37.6]} 30. Qxb7 {[%clk
0:00:14.8]} 30... Nd8 {[%clk 0:00:34.5]} 31. Qd7 {[%clk 0:00:14.7]} 31... Nf7
{[%clk 0:00:34]} 32. Re8 {[%clk 0:00:14.7]} 32... Kg7 {[%clk 0:00:33]} 33. Rxf8
{[%clk 0:00:14.5]} 33... Kxf8 {[%clk 0:00:33.9]} 34. Qxa7 {[%clk 0:00:14.6]}
34... Kg7 {[%clk 0:00:33.5]} 35. Qd4+ {[%clk 0:00:14.9]} 35... Kh6 {[%clk
0:00:33]} 36. b4 {[%clk 0:00:15.8]} 36... Ng5 {[%clk 0:00:32.3]} 37. b5 {[%clk
0:00:16.7]} 37... Ne6 {[%clk 0:00:29.4]} 38. Qh4+ {[%clk 0:00:15.8]} 38... Kg7
{[%clk 0:00:28.8]} 39. Qe7+ {[%clk 0:00:16.5]} 39... Kh6 {[%clk 0:00:28.1]} 40.
Qxe6 {[%clk 0:00:17.4]} 40... Kh5 {[%clk 0:00:27.8]} 41. b6 {[%clk 0:00:18.3]}
41... h6 {[%clk 0:00:28.5]} 42. b7 {[%clk 0:00:17]} 42... g5 {[%clk 0:00:29.4]}
43. Qf7+ {[%clk 0:00:15.8]} 43... Kh4 {[%clk 0:00:30.3]} 44. g3+ {[%clk
0:00:15.2]} 44... Kg4 {[%clk 0:00:28.3]} 45. f3+ {[%clk 0:00:14.5]} 45... Kh3
{[%clk 0:00:24.7]} 46. Qh5# {[%clk 0:00:14.8]} 1-0

[Event "Early-Titled-Tuesday-Blitz-June-18-2024"]
[Site "Chess.com"]
[Date "2024.06.18"]
[Round "2"]
[White "Iuckyducky"]
[Black "ValentinDragnev"]
[Result "0-1"]
[WhiteElo "2286"]
[BlackElo "2706"]
[TimeControl "180+1"]
[EndTime "8:18:10 PDT"]
[Termination "ValentinDragnev won by resignation"]

1. d4 {[%clk 0:03:00.9]} 1... Nf6 {[%clk 0:02:58.5]} 2. c4 {[%clk 0:03:01.2]}
2... g6 {[%clk 0:02:57.3]} 3. Nf3 {[%clk 0:03:01.6]} 3... Bg7 {[%clk 0:02:57.1]}
4. g3 {[%clk 0:03:02.3]} 4... O-O {[%clk 0:02:57.7]} 5. Bg2 {[%clk 0:03:02.8]}
5... d6 {[%clk 0:02:58.3]} 6. O-O {[%clk 0:03:02.5]} 6... Re8 {[%clk 0:02:58.9]}
7. Nc3 {[%clk 0:02:59.8]} 7... Bd7 {[%clk 0:02:59.5]} 8. b4 {[%clk 0:02:57.7]}
8... e5 {[%clk 0:02:54.7]} 9. Bb2 {[%clk 0:02:45.1]} 9... Qc8 {[%clk 0:02:45.1]}
10. Re1 {[%clk 0:02:39.5]} 10... e4 {[%clk 0:02:42.5]} 11. Nd2 {[%clk
0:02:37.8]} 11... e3 {[%clk 0:02:43]} 12. fxe3 {[%clk 0:02:32.6]} 12... Ng4
{[%clk 0:02:43.4]} 13. Nf1 {[%clk 0:02:18.1]} 13... Nxe3 {[%clk 0:02:19.5]} 14.
Nxe3 {[%clk 0:02:17.2]} 14... Rxe3 {[%clk 0:02:20.4]} 15. Nd5 {[%clk 0:02:09.8]}
15... Re8 {[%clk 0:02:20.2]} 16. e4 {[%clk 0:02:05]} 16... Nc6 {[%clk
0:02:15.4]} 17. b5 {[%clk 0:01:51.7]} 17... Ne7 {[%clk 0:02:10]} 18. e5 {[%clk
0:01:29.1]} 18... Nxd5 {[%clk 0:02:06.6]} 19. Bxd5 {[%clk 0:01:30]} 19... c6
{[%clk 0:01:57.9]} 20. bxc6 {[%clk 0:01:23.1]} 20... Bxc6 {[%clk 0:01:56.4]} 21.
exd6 {[%clk 0:00:53.4]} 21... Bxd5 {[%clk 0:01:50.6]} 22. cxd5 {[%clk
0:00:42.6]} 22... Qc4 {[%clk 0:01:39]} 23. Rxe8+ {[%clk 0:00:25.3]} 23... Rxe8
{[%clk 0:01:39.9]} 24. d7 {[%clk 0:00:10.7]} 24... Rd8 {[%clk 0:01:33.3]} 25.
Qg4 {[%clk 0:00:10.6]} 25... Qc2 {[%clk 0:01:15.8]} 26. Re1 {[%clk 0:00:08.9]}
26... Bf8 {[%clk 0:01:10.6]} 27. Ba1 {[%clk 0:00:03]} 27... h5 {[%clk
0:00:54.8]} 28. Qh3 {[%clk 0:00:02.3]} 28... Qxa2 {[%clk 0:00:45.4]} 29. Bc3
{[%clk 0:00:01.1]} 29... Qxd5 {[%clk 0:00:41.5]} 30. Re8 {[%clk 0:00:01.3]}
30... Rxd7 {[%clk 0:00:24]} 31. Qf1 {[%clk 0:00:01.6]} 31... Rd8 {[%clk
0:00:19.8]} 32. Qe2 {[%clk 0:00:01]} 32... Rxe8 {[%clk 0:00:17.5]} 33. Qxe8
{[%clk 0:00:01.8]} 33... Qc6 {[%clk 0:00:18.2]} 34. Bb4 {[%clk 0:00:01.2]} 34...
Qxe8 {[%clk 0:00:18]} 0-1

[Event "Early-Titled-Tuesday-Blitz-June-18-2024"]
[Site "Chess.com"]
[Date "2024.06.18"]
[Round "2"]
[White "Chopper1905"]
[Black "xakevicius91"]
[Result "1-0"]
[WhiteElo "2930"]
[BlackElo "2630"]
[TimeControl "180+1"]
[EndTime "8:18:11 PDT"]
[Termination "Chopper1905 won on time"]

1. d4 {[%clk 0:03:00.9]} 1... Nf6 {[%clk 0:02:59.8]} 2. c4 {[%clk 0:03:00]} 2...
e6 {[%clk 0:03:00.1]} 3. a3 {[%clk 0:02:53.4]} 3... c5 {[%clk 0:02:52.4]} 4. Nf3
{[%clk 0:02:50.5]} 4... cxd4 {[%clk 0:02:50.9]} 5. Nxd4 {[%clk 0:02:51.4]} 5...
b6 {[%clk 0:02:50.2]} 6. f3 {[%clk 0:02:38.7]} 6... Bb7 {[%clk 0:02:50.4]} 7. e4
{[%clk 0:02:39.1]} 7... d6 {[%clk 0:02:50.9]} 8. Nc3 {[%clk 0:02:39.1]} 8... a6
{[%clk 0:02:51.2]} 9. Be3 {[%clk 0:02:39.5]} 9... Nbd7 {[%clk 0:02:51.6]} 10.
Be2 {[%clk 0:02:40.1]} 10... Qc7 {[%clk 0:02:52.2]} 11. O-O {[%clk 0:02:40.1]}
11... Be7 {[%clk 0:02:52.8]} 12. Qd2 {[%clk 0:02:38.4]} 12... O-O {[%clk
0:02:52.9]} 13. b4 {[%clk 0:02:36.9]} 13... Rfc8 {[%clk 0:02:52.8]} 14. Rfc1
{[%clk 0:02:36.1]} 14... Qd8 {[%clk 0:02:52.9]} 15. Bf1 {[%clk 0:02:34.7]} 15...
h6 {[%clk 0:02:48.6]} 16. Nb3 {[%clk 0:02:31.2]} 16... Qf8 {[%clk 0:02:44.5]}
17. Na4 {[%clk 0:02:20.9]} 17... Bd8 {[%clk 0:02:24.4]} 18. Qf2 {[%clk
0:02:20.7]} 18... Rab8 {[%clk 0:02:16.4]} 19. Rab1 {[%clk 0:02:05.4]} 19... Ba8
{[%clk 0:01:52.7]} 20. Bd4 {[%clk 0:01:51.3]} 20... e5 {[%clk 0:01:37.5]} 21.
Be3 {[%clk 0:01:49.7]} 21... g5 {[%clk 0:01:38.1]} 22. Nc3 {[%clk 0:01:25]}
22... Qg7 {[%clk 0:01:32.8]} 23. Nd5 {[%clk 0:01:25.2]} 23... Bb7 {[%clk
0:01:18.6]} 24. Kh1 {[%clk 0:01:22.3]} 24... g4 {[%clk 0:01:09.8]} 25. Be2
{[%clk 0:01:03.8]} 25... Kh8 {[%clk 0:01:03.8]} 26. fxg4 {[%clk 0:00:52.9]}
26... Nxe4 {[%clk 0:00:57.8]} 27. Qf5 {[%clk 0:00:46.6]} 27... Ndf6 {[%clk
0:00:40.2]} 28. Bd3 {[%clk 0:00:20.4]} 28... Nxd5 {[%clk 0:00:34.8]} 29. cxd5
{[%clk 0:00:19.9]} 29... Nc3 {[%clk 0:00:28.5]} 30. Qh5 {[%clk 0:00:10.6]} 30...
Bxd5 {[%clk 0:00:15.5]} 31. Bxh6 {[%clk 0:00:09.6]} 1-0